Workbook

Sheet List1
A2: Společné údaje
A4: diskont po zdanění | C4: 0.08
A5: daňová sazba | C5: 0.2
A8: Vlastní prostředky
A10: Pořizovací cena | C10: 450 | D10: tis. Kč | H10: =DanovyOdpis($C$10,"zrychlený",D14,3) -> 90 | I10: =DanovyOdpis($C$10,"zrychlený",E14,3) -> 0 | J10: =DanovyOdpis($C$10,"zrychlený",F14,3) -> 53.55 | K10: =DanovyOdpis($C$10,"zrychlený",G14,3) -> 43.82 | L10: =DanovyOdpis($C$10,"zrychlený",H14,3) -> 35.85 | M10: =DanovyOdpis($C$10,"zrychlený",I14,3) -> 0
A11: Daňová životnost | C11: 5 | D11: let
A12: Pojistné | C12: 10 | D12: tis. Kč/rok
B14: rok | C14: 0 | D14: 1 | E14: 2 | F14: 3 | G14: 4 | H14: 5
A15: koupě | C15: =-C10 -> -450
A16: odpis | D16: =-1/C11*C15 -> 90 | E16: =2*(-$C$15-D16)/($C$11+1-D14) -> 144 | F16: =2*(-$C$15-SUM($D$16:E16))/($C$11+1-E14) -> 108 | G16: =2*(-$C$15-SUM($D$16:F16))/($C$11+1-F14) -> 72 | H16: =2*(-$C$15-SUM($D$16:G16))/($C$11+1-G14) -> 36
A17: odpis jinak | D17: =-C15/C11 -> 90 | E17: =2/$C$11^2*($C$11-D14)*$C$10 -> 144 | F17: =2/$C$11^2*($C$11-E14)*$C$10 -> 108 | G17: =2/$C$11^2*($C$11-F14)*$C$10 -> 72 | H17: =2/$C$11^2*($C$11-G14)*$C$10 -> 36
A18: daň. štít odpisů | D18: =+$C$5*D17 -> 18 | E18: =+$C$5*E17 -> 28.8 | F18: =+$C$5*F17 -> 21.6 | G18: =+$C$5*G17 -> 14.4 | H18: =+$C$5*H17 -> 7.2
A19: Pojistné | D19: =-$C$12 -> -10 | E19: =-$C$12 -> -10 | F19: =-$C$12 -> -10 | G19: =-$C$12 -> -10 | H19: =-$C$12 -> -10
A20: daň. štít pojistného | D20: =-D19*$C$5 -> 2 | E20: =-E19*$C$5 -> 2 | F20: =-F19*$C$5 -> 2 | G20: =-G19*$C$5 -> 2 | H20: =-H19*$C$5 -> 2
A22: CF po zdanění | C22: =+C15+C18 -> -450 | D22: =+D15+D18+D19+D20 -> 10 | E22: =+E15+E18+E19+E20 -> 20.8 | F22: =+F15+F18+F19+F20 -> 13.6 | G22: =+G15+G18+G19+G20 -> 6.4 | H22: =+H15+H18+H19+H20 -> -0.8
A24: NPV | C24: =NPV($C$4,D22:H22)+C22 -> -407.9522503
A27: Úvěr
A29: úrok | C29: 0.07 | D29: p. a.
A30: poplatek za sjednání | C30: 0.02
A31: vedení účtu | C31: 6 | D31: =+D12 -> tis. Kč/rok
A32: Pojistné | C32: 10 | D32: =+D12 -> tis. Kč/rok
A33: Doba úvěru | C33: 4 | D33: roky
B35: rok | C35: 0 | D35: 1 | E35: 2 | F35: 3 | G35: 4 | H35: 5
A36: koupě | C36: =-$C$10 -> -450
A37: odpis | D37: =+D17 -> 90 | E37: =+E17 -> 144 | F37: =+F17 -> 108 | G37: =+G17 -> 72 | H37: =+H17 -> 36
A38: úvěr | C38: =+C10 -> 450
A39: poplatek za sjednání | C39: =+C30*C36 -> -9
A40: vedení účtu | C40: =-$C$31 -> -6 | D40: =IF(D35<=$C$33,-$C$31,0) -> -6 | E40: =IF(E35<=$C$33,-$C$31,0) -> -6 | F40: =IF(F35<=$C$33,-$C$31,0) -> -6 | G40: =IF(G35<=$C$33,-$C$31,0) -> -6 | H40: =IF(H35<=$C$33,-$C$31,0) -> 0
A41: úmor | D41: =IF(D35<=$C$33,+$C$36/$C$33,0) -> -112.5 | E41: =IF(E35<=$C$33,+$C$36/$C$33,0) -> -112.5 | F41: =IF(F35<=$C$33,+$C$36/$C$33,0) -> -112.5 | G41: =IF(G35<=$C$33,+$C$36/$C$33,0) -> -112.5 | H41: =IF(H35<=$C$33,+$C$36/$C$33,0) -> 0
A42: úrok | D42: =+($C$36-SUM($C$41:C41))*$C$29 -> -31.5 | E42: =+($C$36-SUM($C$41:D41))*$C$29 -> -23.625 | F42: =+($C$36-SUM($C$41:E41))*$C$29 -> -15.75 | G42: =+($C$36-SUM($C$41:F41))*$C$29 -> -7.875 | H42: =+($C$36-SUM($C$41:G41))*$C$29 -> 0
A43: pojistné | D43: =-$C$32 -> -10 | E43: =-$C$32 -> -10 | F43: =-$C$32 -> -10 | G43: =-$C$32 -> -10 | H43: =-$C$32 -> -10
A44: daňový štít | C44: =-(-C37+C39+C40+C42+C43)*$C$5 -> 3 | D44: 27.5 | E44: 36.725 | F44: 27.95 | G44: 19.175 | H44: 9.2
A46: =+A22 -> CF po zdanění | C46: =+C36+C38+C39+C40+C41+C42+C43+C44 -> -12 | D46: -132.5 | E46: -115.4 | F46: -116.3 | G46: -117.2 | H46: -0.8
A47: CF pro RPSN | C47: =+C38+C39+C40+C41+C42 -> 435 | D47: =+(D40+D41+D42) -> -150 | E47: =+(E40+E41+E42) -> -142.125 | F47: =+(F40+F41+F42) -> -134.25 | G47: =+(G40+G41+G42) -> -126.375 | H47: =+(H40+H41+H42) -> 0
A48: CF pro RPSN po zdanění | C48: =+C47+C44 -> 438 | D48: =+D47-(D40+D42)*$C$5 -> -142.5 | E48: =+E47-(E40+E42)*$C$5 -> -136.2 | F48: =+F47-(F40+F42)*$C$5 -> -129.9 | G48: =+G47-(G40+G42)*$C$5 -> -123.6 | H48: =+H47-(H40+H42)*$C$5 -> 0
A50: NPV | C50: =NPV($C$4,D46:H46)+C46 -> -412.63474
A51: RPSN před zdaněním | C51: =IRR(C47:H47,0.1) -> 0.1065525955
A52: RPSN po zdanění | C52: =IRR(C48:H48,0.1) -> 0.08491376922
A55: Leasing
A57: koeficient navýšení | C57: 1.3
A58: doba leasingu | C58: 5 | D58: let
A59: Akontace | C59: 0 | D59: =+D10 -> tis. Kč
A60: navýšená první splátka | C60: 250 | D60: =+D59 -> tis. Kč
A61: odkupní cena | C61: 1 | D61: =+D60 -> tis. Kč
A62: pojistné | C62: 20 | D62: =+D32 -> tis. Kč/rok
B64: rok | C64: 0 | D64: 1 | E64: 2 | F64: 3 | G64: 4 | H64: 5
A65: akontace | C65: =-C59 -> 0
A66: splátky leasingu | D66: =-C60 -> -250 | E66: =IF(E64<=$C$58,((-C10*C57+C60)/(C58-1)),0) -> -83.75 | F66: =IF(F64<=$C$58,+E66,0) -> -83.75 | G66: =IF(G64<=$C$58,+F66,0) -> -83.75 | H66: =IF(H64<=$C$58,+G66,0) -> -83.75
A67: daňově uznatelné splátky | D67: =IF(D64<=$C$58,+$C$57*$C$10/$C$58,0) -> 117 | E67: =IF(E64<=$C$58,+$C$57*$C$10/$C$58,0) -> 117 | F67: =IF(F64<=$C$58,+$C$57*$C$10/$C$58,0) -> 117 | G67: =IF(G64<=$C$58,+$C$57*$C$10/$C$58,0) -> 117 | H67: =IF(H64<=$C$58,+$C$57*$C$10/$C$58,0) -> 117
A68: pojistné | D68: =IF(D64<=$C$58,-$C$62,0) -> -20 | E68: =IF(E64<=$C$58,-$C$62,0) -> -20 | F68: =IF(F64<=$C$58,-$C$62,0) -> -20 | G68: =IF(G64<=$C$58,-$C$62,0) -> -20 | H68: =IF(H64<=$C$58,-$C$62,0) -> -20
A69: odkup | D69: =IF(D64=$C$58,-$C$61,0) -> 0 | E69: =IF(E64=$C$58,-$C$61,0) -> 0 | F69: =IF(F64=$C$58,-$C$61,0) -> 0 | G69: =IF(G64=$C$58,-$C$61,0) -> 0 | H69: =IF(H64=$C$58,-$C$61,0) -> -1
A70: =+A44 -> daňový štít | D70: =+(D67-D68-D69)*$C$5 -> 27.4 | E70: =+(E67-E68-E69)*$C$5 -> 27.4 | F70: =+(F67-F68-F69)*$C$5 -> 27.4 | G70: =+(G67-G68-G69)*$C$5 -> 27.4 | H70: =+(H67-H68-H69)*$C$5 -> 27.6
A71: =+A46 -> CF po zdanění | C71: =+C65+C66+C68+C69+C70 -> 0 | D71: -242.6 | E71: -76.35 | F71: -76.35 | G71: -76.35 | H71: -77.15
A72: CF pro efektivní úrok | C72: =+C10 -> 450 | D72: =+D71 -> -242.6 | E72: =+E71 -> -76.35 | F72: =+F71 -> -76.35 | G72: =+G71 -> -76.35 | H72: =+H71 -> -77.15
A74: NPV | C74: =NPV($C$4,D71:H71)+C71 -> -459.3230631
A75: Efektivní úrok (před zdaněním) | C75: =+C76/(1-C5) -> 0.1125243128
A76: Efektivní úrok (po zdanění) | C76: =IRR(C72:H72,0.1) -> 0.09001945024

Sheet List2

Sheet List3
